fUSD/lending_fUSD_20240203
["ID","MTS","AMOUNT","RATE_DAILY","PERIOD"]
[313206755,1706949032406,-420.36,0.000228,2]
[313206757,1706949032415,-150.0,0.000228,2]
[313206759,1706949032425,-945.4,0.000228,2]
[313206761,1706949032434,-403.47,0.000228,2]
[313206762,1706949032443,-417.05,0.000228,2]
[313206764,1706949032452,-341.64,0.000228,2]
[313206766,1706949032461,-417.05,0.000228,2]
[313206767,1706949032470,-1368.98,0.000228,2]
[313206776,1706949032594,-350.74,0.000228,2]
[313206777,1706949032603,-403.47,0.000228,2]
[313206779,1706949032612,-150.0,0.000228,2]
[313206781,1706949032621,-945.4,0.000228,2]
[313206782,1706949032631,-417.05,0.000228,2]
[313206784,1706949032640,-420.36,0.000228,2]
[313206786,1706949032649,-420.36,0.000228,2]
[313206787,1706949032658,-945.4,0.000228,2]
[313206789,1706949032667,-403.47,0.000228,2]
[313206791,1706949032676,-420.36,0.000228,2]
[313206792,1706949032685,-170.93,0.000228,2]
[313206794,1706949032694,-403.47,0.000228,2]
[313206796,1706949032703,-945.4,0.000228,2]
[313206797,1706949032712,-341.64,0.000228,2]
[313206799,1706949032721,-420.36,0.000228,2]
[313206800,1706949032730,-945.4,0.000228,2]
[313206801,1706949032739,-403.47,0.000228,2]
[313206802,1706949032748,-420.36,0.000228,2]
[313206803,1706949032757,-150.0,0.000228,2]
[313206804,1706949032766,-341.64,0.000228,2]
[313206805,1706949032775,-403.47,0.000228,2]
[313206806,1706949032785,-945.4,0.000228,2]
[313206807,1706949032794,-420.36,0.000228,2]
[313206808,1706949032803,-804.88,0.000228,2]
[313206809,1706949032811,-945.4,0.000228,2]
[313206810,1706949032821,-420.36,0.000228,2]
[313206811,1706949032831,-410.28,0.000228,2]
[313206812,1706949032840,-945.4,0.000228,2]
[313206813,1706949032849,-403.47,0.000228,2]
[313206814,1706949032859,-156.24,0.000228,2]
[313206815,1706949032868,-341.64,0.000228,2]
[313206816,1706949032877,-417.05,0.000228,2]
[313206817,1706949032889,-150.0,0.000228,2]
[313206818,1706949032898,-420.36,0.000228,2]
[313206819,1706949032906,-174.64,0.000228,2]
[313206820,1706949032917,-150.0,0.000228,2]
[313206821,1706949032926,-947.78,0.000228,2]
[313206822,1706949032937,-150.0,0.000228,2]
[313206823,1706949032946,-340.14,0.000228,2]
[313206824,1706949032955,-403.47,0.000228,2]
[313206825,1706949032964,-410.28,0.000228,2]
[313206826,1706949032975,-420.36,0.000228,2]
[313206827,1706949032984,-417.05,0.000228,2]
[313206828,1706949032993,-403.47,0.000228,2]
[313206829,1706949033002,-435.48,0.000228,2]
[313206830,1706949033012,-150.0,0.000228,2]
[313206831,1706949033022,-341.64,0.000228,2]
[313206832,1706949033031,-409.64,0.000228,2]
[313206833,1706949033041,-945.4,0.000228,2]
[313206834,1706949033050,-417.05,0.000228,2]
[313206835,1706949033059,-150.0,0.000228,2]
[313206836,1706949033069,-403.07,0.000228,2]
[313206837,1706949033078,-403.47,0.000228,2]
[313206838,1706949033087,-410.28,0.000228,2]
[313206839,1706949033096,-420.36,0.000228,2]
[313206840,1706949033105,-945.4,0.000228,2]
[313206841,1706949033114,-262.48,0.000228,2]
[313206842,1706949033124,-417.05,0.000228,2]
[313206843,1706949033133,-341.64,0.000228,2]
[313206844,1706949033143,-150.0,0.000228,2]
[313206845,1706949033152,-150.0,0.000228,2]
[313206846,1706949033161,-200.0,0.000228,8]
[313206847,1706949033171,-197.97909896,0.00022891,3]
[313206848,1706949033180,-1762.354,0.00022891,2]
[313206849,1706949033189,-1226.393,0.00022891,2]
[313206850,1706949033198,-449.40474835,0.00022898,2]
[313206851,1706949033208,-449.40474835,0.00022899,2]
[313206852,1706949033219,-189.26471854,0.00022899,2]
[313206853,1706949033229,-449.40474835,0.00022899,2]
[313206854,1706949033240,-189.2647185,0.00022899,2]
[313206855,1706949033249,-189.2647185,0.00022899,2]
[313206856,1706949033259,-189.2647185,0.00022899,2]
[313206857,1706949033268,-449.40474835,0.000229,2]
[313206858,1706949033277,-189.2647185,0.000229,2]
[313206859,1706949033287,-189.2647185,0.000229,2]
[313206860,1706949033296,-4732.1768,0.000229,2]
[313206861,1706949033306,-189.2647185,0.000229,2]
[313206862,1706949033316,-225.7,0.000229,2]
[313206863,1706949033326,-945.4,0.000229,2]
[313206864,1706949033335,-420.36,0.000229,2]
[313206865,1706949033344,-945.4,0.000229,2]
[313206866,1706949033353,-403.47,0.000229,2]
[313206867,1706949033363,-431.64,0.000229,2]
[313206868,1706949033372,-420.36,0.000229,2]
[313206869,1706949033381,-248.49,0.000229,2]
[313206870,1706949033390,-150.0,0.000229,2]
[313206871,1706949033400,-341.64,0.000229,2]
[313206872,1706949033409,-1126.26,0.000229,2]
[313206873,1706949033418,-403.47,0.000229,2]
[313206874,1706949033428,-420.36,0.000229,2]
[313206875,1706949033438,-945.74,0.000229,2]
[313206876,1706949033447,-417.05,0.000229,2]
[313206877,1706949033456,-150.0,0.000229,2]
[313206878,1706949033466,-420.36,0.000229,2]
[313206879,1706949033475,-403.47,0.000229,2]
[313206880,1706949033484,-341.64,0.000229,2]
[313206881,1706949033493,-194.71200086,0.000229,2]
[313206882,1706949033502,-1637.5,0.000229,2]
[313206883,1706949033511,-189.2647185,0.000229,2]
[313206884,1706949033520,-151.99258311,0.000229,2]
[313206885,1706949033529,-449.40474835,0.000229,2]
[313206886,1706949033538,-410.28,0.000229,2]
[313206887,1706949033547,-341.64,0.000229,2]
[313206888,1706949033556,-417.25,0.000229,2]
[313206889,1706949033565,-420.36,0.000229,2]
[313206890,1706949033575,-975.79,0.000229,2]
[313206891,1706949033584,-150.0,0.000229,2]
[313206892,1706949033593,-417.05,0.000229,2]
[313206893,1706949033603,-154.26,0.000229,2]
[313206894,1706949033613,-945.4,0.000229,2]
[313206895,1706949033623,-341.64,0.000229,2]
[313206896,1706949033631,-420.36,0.000229,2]
[313206897,1706949033641,-365.09,0.000229,2]
[313206898,1706949033649,-403.47,0.000229,2]
[313206899,1706949033659,-150.0,0.000229,2]
[313206900,1706949033667,-341.64,0.000229,2]
[313206901,1706949033676,-945.4,0.000229,2]
[313206902,1706949033685,-150.0,0.000229,2]
[313206903,1706949033695,-358.94490727,0.000229,2]
[313206904,1706949033704,-1330.73071883,0.000229,2]
[313206905,1706949033713,-911.03342894,0.000229,2]
[313206906,1706949033721,-200.0,0.000229,8]
[313206907,1706949033730,-184.84223321,0.00022996,3]
[313206908,1706949033741,-234.54335915,0.00022996,2]
[313206909,1706949033751,-247.88268541,0.00022996,2]
[313206910,1706949033760,-234.07490402,0.00022996,2]
[313206911,1706949033770,-246.91049352,0.00022996,2]
[313206912,1706949033778,-164.54016864,0.00022996,2]
[313206913,1706949033788,-155.29620139,0.00022996,2]
[313206914,1706949033796,-157.84367586,0.00022996,2]
[313206915,1706949033805,-157.65736082,0.00022996,2]
[313206916,1706949033814,-3255.79145267,0.00022996,2]
[313206917,1706949033823,-233.3484501,0.00022996,2]
[313206918,1706949033832,-315.18305531,0.00022996,2]
[313206919,1706949033840,-270.79408529,0.00022996,2]
[313206920,1706949033848,-155.0,0.00022996,2]
[313206921,1706949033858,-155.70017825,0.00022996,2]
[313206922,1706949033867,-975.09064065,0.00022996,2]
[313206923,1706949033876,-172.02741418,0.00022996,2]
[313206924,1706949033886,-155.0,0.00022996,2]
[313206925,1706949033896,-1133.3516508,0.00022996,2]
[313206926,1706949033905,-526.38180579,0.00022996,2]
[313206927,1706949033914,-294.72211354,0.00022996,2]
[313206928,1706949033924,-156.93328448,0.00022996,2]
[313206929,1706949033934,-33.40912573,0.00022996,2]
[313206930,1706949033952,-124.23820255,0.00022996,2]
[313206931,1706949033961,-160.76179745,0.00022996,2]
[313206932,1706949033991,-341.48470122,0.00022996,2]
[313206933,1706949034000,-155.43322302,0.00022996,2]
[313206934,1706949034010,-164.99634728,0.00022996,2]
[313206935,1706949034020,-604.84373791,0.00022996,2]
[313206938,1706949038029,-2125.0,0.00022996,2]
[313206939,1706949038042,-179.51795348,0.00022996,2]
[313206940,1706949038052,-155.45202334,0.00022996,2]
[313206941,1706949038062,-28.28874919,0.00022996,2]
[313206942,1706949038078,-3606.73714578,0.00022996,2]
[313206943,1706949038088,-155.36178084,0.00022996,2]
[313206944,1706949038098,-197.73253696,0.00022996,2]
[313206945,1706949038107,-1070.78652453,0.00022996,2]
[313206946,1706949038117,-732.89790125,0.00022996,2]
[313206947,1706949038128,-155.40755986,0.00022996,2]
[313206948,1706949038137,-160.49859789,0.00022996,2]
[313206949,1706949038147,-3329.35169132,0.00022996,2]
[313206950,1706949038156,-357.89861177,0.00022996,2]
[313206951,1706949038167,-345.28681999,0.00022997,2]
[313206952,1706949038176,-500.0,0.00022997,2]
[313206953,1706949038186,-500.0,0.00022997,2]
[313206954,1706949038199,-500.0,0.00022997,2]
[313206955,1706949038209,-968.61,0.00022997,2]
[313206956,1706949038219,-500.0,0.00022997,2]
[313206957,1706949038228,-500.0,0.00022997,2]
[313206958,1706949038238,-500.0,0.00022997,2]
[313206959,1706949038248,-500.0,0.00022997,2]
[313206960,1706949038257,-500.0,0.00022997,2]
[313206961,1706949038268,-500.0,0.00022997,2]
[313206962,1706949038278,-500.0,0.00022997,2]
[313206963,1706949038288,-1443.49,0.00022997,2]
[313206964,1706949038298,-500.0,0.00022997,2]
[313206965,1706949038309,-728.93,0.00022997,2]
[313206966,1706949038318,-500.0,0.00022997,2]
[313206967,1706949038328,-500.0,0.00022997,2]
[313206968,1706949038338,-500.0,0.00022997,2]
[313206969,1706949038347,-937.64,0.00022997,2]
[313206970,1706949038357,-500.0,0.00022997,2]
[313206971,1706949038366,-500.0,0.00022997,2]
[313206972,1706949038376,-500.0,0.00022997,2]
[313206973,1706949038385,-500.0,0.00022997,2]
[313206974,1706949038395,-500.0,0.00022997,2]
[313206975,1706949038404,-500.0,0.00022997,2]
[313206976,1706949038413,-500.0,0.00022997,2]
[313206977,1706949038423,-500.0,0.00022997,2]
[313206978,1706949038432,-500.0,0.00022997,2]
[313206979,1706949038443,-144.17082981,0.00022997,2]
[313206980,1706949038455,-355.82917019,0.00022997,2]
[313206982,1706949038465,-500.0,0.00022997,2]
[313206984,1706949038475,-500.0,0.00022997,2]
[313206986,1706949038485,-500.0,0.00022997,2]
[313206988,1706949038494,-500.0,0.00022997,2]
[313206989,1706949038503,-500.0,0.00022997,2]
[313206990,1706949038512,-116.10280169,0.00022997,2]
[313206993,1706949038524,-383.89719831,0.00022997,2]
[313206995,1706949038533,-500.0,0.00022997,2]
[313206997,1706949038542,-500.0,0.00022997,2]
[313206999,1706949038556,-500.0,0.00022997,2]
[313207001,1706949038565,-573.4444595,0.00022997,2]
[313207003,1706949038574,-500.0,0.00022997,2]
[313207006,1706949038583,-500.0,0.00022997,2]
[313207009,1706949038592,-500.0,0.00022997,2]
[313207012,1706949038601,-500.0,0.00022997,2]
[313207015,1706949038611,-500.0,0.00022997,2]
[313207017,1706949038620,-754.79,0.00022997,2]
[313207019,1706949038629,-500.0,0.00022997,2]
[313207021,1706949038638,-500.0,0.00022997,2]
[313207023,1706949038647,-500.0,0.00022997,2]
[313207025,1706949038657,-500.0,0.00022997,2]
[313207027,1706949038666,-748.25,0.00022997,2]
[313207029,1706949038675,-500.0,0.00022997,2]
[313207031,1706949038684,-500.0,0.00022997,2]
[313207033,1706949038693,-661.72,0.00022997,2]
[313207035,1706949038702,-500.0,0.00022997,2]
[313207037,1706949038711,-500.0,0.00022997,2]
[313207039,1706949038721,-500.0,0.00022997,2]
[313207041,1706949038730,-500.0,0.00022997,2]
[313207043,1706949038739,-500.0,0.00022997,2]
[313207045,1706949038748,-500.0,0.00022997,2]
[313207047,1706949038758,-500.0,0.00022997,2]
[313207049,1706949038767,-500.0,0.00022997,2]
[313207051,1706949038776,-500.0,0.00022997,2]
[313207053,1706949038785,-500.0,0.00022997,2]
[313207055,1706949038795,-595.11,0.00022997,2]
[313207057,1706949038804,-500.0,0.00022997,2]
[313207059,1706949038813,-500.0,0.00022997,2]
[313207061,1706949038823,-1093.4,0.00022997,2]
[313207063,1706949038832,-1263.97,0.00022997,2]
[313207065,1706949038841,-500.0,0.00022997,2]
[313207067,1706949038851,-500.0,0.00022997,2]
[313207069,1706949038860,-1965.22,0.00022997,2]
[313207071,1706949038871,-500.0,0.00022997,2]
[313207073,1706949038880,-500.0,0.00022997,2]
[313207076,1706949038895,-500.0,0.00022997,2]
[313207078,1706949038905,-601.92,0.00022997,2]
[313207080,1706949038914,-500.0,0.00022997,2]
[313207082,1706949038923,-500.0,0.00022997,2]
[313207083,1706949038933,-583.68,0.00022997,2]
[313207085,1706949038942,-500.0,0.00022997,2]
[313207087,1706949038952,-500.0,0.00022997,2]
[313207090,1706949038961,-500.0,0.00022997,2]
[313207091,1706949038970,-500.0,0.00022997,2]
[313207093,1706949038981,-500.0,0.00022997,2]
[313207095,1706949038990,-500.0,0.00022997,2]
[313207098,1706949038999,-500.0,0.00022997,2]
[313207100,1706949039008,-500.0,0.00022997,2]
[313207102,1706949039018,-500.0,0.00022997,2]
[313207104,1706949039027,-500.0,0.00022997,2]
[313207106,1706949039036,-172.2032371,0.00022997,2]
[313207108,1706949039049,-500.0,0.00022997,2]
[313207110,1706949039060,-295.42438641,0.00022998,3]
[313207112,1706949039069,-449.81055453,0.00022998,2]
[313207114,1706949039079,-7575.51427722,0.00022998,2]
[313207115,1706949039088,-285.80236375,0.00022998,2]
[313207117,1706949039097,-246.98948582,0.00022998,2]
[313207119,1706949039106,-74376.5871932,0.00022998,2]
[313207121,1706949039116,-265.79545857,0.00022998,2]
[313207136,1706949039250,-525.73205245,0.00022998,2]
[313207138,1706949039259,-289.31995548,0.00022998,2]
[313207140,1706949039269,-233.46806501,0.00022998,2]
[313207142,1706949039278,-17462.87949668,0.00022998,2]
[313207144,1706949039287,-1231.03115154,0.00022998,2]
[313207146,1706949039296,-283.19567927,0.00022998,2]
[313207148,1706949039305,-307.13029771,0.00022998,2]
[313207150,1706949039314,-500.0,0.00022998,2]
[313207152,1706949039323,-247.74466246,0.00022998,2]
[313207153,1706949039331,-167.70807096,0.00022998,2]
[313207155,1706949039342,-215.84825104,0.00022998,2]
[313207158,1706949039352,-500.0,0.00022998,2]
[313207160,1706949039361,-500.0,0.00022998,2]
[313207162,1706949039371,-500.0,0.00022998,2]
[313207164,1706949039380,-500.0,0.00022998,2]
[313207165,1706949039389,-500.0,0.00022998,2]
[313207167,1706949039399,-500.0,0.00022998,2]
[313207170,1706949039408,-500.0,0.00022998,2]
[313207172,1706949039417,-500.0,0.00022998,2]
[313207173,1706949039426,-500.0,0.00022998,2]
[313207175,1706949039435,-500.0,0.00022998,2]
[313207177,1706949039444,-500.0,0.00022998,2]
[313207179,1706949039453,-500.0,0.00022998,2]
[313207181,1706949039462,-500.0,0.00022998,2]
[313207183,1706949039471,-567.48855966,0.00022998,2]
[313207185,1706949039481,-500.0,0.00022998,2]
[313207187,1706949039489,-500.0,0.00022998,2]
[313207189,1706949039498,-500.0,0.00022998,2]
[313207191,1706949039508,-450.0,0.00022998,2]
[313207194,1706949039517,-500.0,0.00022998,2]
[313207197,1706949039537,-500.0,0.00022998,2]
[313207199,1706949039547,-500.0,0.00022998,2]
[313207201,1706949039556,-500.0,0.00022998,2]
[313207203,1706949039566,-500.0,0.00022998,2]
[313207205,1706949039575,-500.0,0.00022998,2]
[313207207,1706949039585,-500.0,0.00022998,2]
[313207209,1706949039595,-500.0,0.00022998,2]
[313207211,1706949039605,-500.0,0.00022998,2]
[313207213,1706949039615,-500.0,0.00022998,2]
[313207215,1706949039625,-500.0,0.00022998,2]
[313207217,1706949039634,-500.0,0.00022998,2]
[313207219,1706949039644,-500.0,0.00022998,2]
[313207221,1706949039654,-500.0,0.00022998,2]
[313207224,1706949039664,-500.0,0.00022998,2]
[313207225,1706949039673,-500.0,0.00022998,2]
[313207228,1706949039683,-500.0,0.00022998,2]
[313207230,1706949039693,-500.0,0.00022998,2]
[313207233,1706949039703,-427.22800297,0.00022998,2]
[313207235,1706949039712,-500.0,0.00022998,2]
[313207237,1706949039722,-500.0,0.00022998,2]
[313207239,1706949039731,-500.0,0.00022998,2]
[313207241,1706949039740,-500.0,0.00022998,2]
[313207243,1706949039749,-500.0,0.00022998,2]
[313207245,1706949039759,-500.0,0.00022998,2]
[313207247,1706949039769,-500.0,0.00022998,2]
[313207249,1706949039778,-640.98652385,0.00022998,2]
[313207251,1706949039788,-500.0,0.00022998,2]
[313207253,1706949039797,-500.0,0.00022998,2]
[313207255,1706949039806,-500.0,0.00022998,2]
[313207257,1706949039816,-500.0,0.00022998,2]
[313207259,1706949039826,-500.0,0.00022998,2]
[313207261,1706949039835,-500.0,0.00022998,2]
[313207263,1706949039844,-500.0,0.00022998,2]
[313207265,1706949039853,-500.0,0.00022998,2]
[313207267,1706949039863,-646.34,0.00022998,2]
[313207269,1706949039873,-500.0,0.00022998,2]
[313207271,1706949039884,-1902.89,0.00022998,2]
[313207273,1706949039895,-500.0,0.00022998,2]
[313207275,1706949039905,-500.0,0.00022998,2]
[313207277,1706949039914,-500.0,0.00022998,2]
[313207279,1706949039923,-500.0,0.00022998,2]
[313207282,1706949039934,-500.0,0.00022998,2]
[313207284,1706949039944,-500.0,0.00022998,2]
[313207286,1706949039953,-500.0,0.00022998,2]
[313207287,1706949039962,-500.0,0.00022998,2]
[313207290,1706949039973,-990.0,0.00022998,7]
[313207292,1706949039983,-990.0,0.00022998,7]
[313207294,1706949039992,-990.0,0.00022998,7]
[313207296,1706949040002,-990.0,0.00022998,7]
[313207298,1706949040011,-990.0,0.00022998,7]
[313207300,1706949040020,-990.0,0.00022998,7]
[313207302,1706949040029,-990.0,0.00022998,7]
[313207304,1706949040039,-990.0,0.00022998,7]
[313207305,1706949040049,-990.0,0.00022998,7]
[313207307,1706949040059,-990.0,0.00022998,7]
[313207309,1706949040069,-990.0,0.00022998,7]
[313207311,1706949040078,-990.0,0.00022998,7]
[313207314,1706949040088,-990.0,0.00022998,7]
[313207315,1706949040097,-990.0,0.00022998,7]
[313207317,1706949040106,-990.0,0.00022998,7]
[313207319,1706949040116,-947.740039,0.00022998,7]
[313207321,1706949040124,-13823.6,0.00022998,2]
[313207323,1706949040134,-500.0,0.00022998,2]
[313207326,1706949040147,-500.0,0.00022998,2]
[313207328,1706949040156,-500.0,0.00022998,2]
[313207330,1706949040166,-500.0,0.00022998,2]
[313207332,1706949040175,-500.0,0.00022998,2]
[313207334,1706949040188,-500.0,0.00022998,2]
[313207336,1706949040197,-500.0,0.00022998,2]
[313207338,1706949040207,-500.0,0.00022998,2]
[313207340,1706949040216,-500.0,0.00022998,2]
[313207342,1706949040225,-254.1941785,0.00022998,2]
[313207344,1706949040235,-500.0,0.00022998,2]
[313207346,1706949040244,-500.0,0.00022998,2]
[313207348,1706949040254,-500.0,0.00022998,2]
[313207350,1706949040263,-500.0,0.00022998,2]
[313207352,1706949040273,-500.0,0.00022998,2]
[313207354,1706949040283,-500.0,0.00022998,2]
[313207356,1706949040295,-500.0,0.00022998,2]
[313207358,1706949040304,-500.0,0.00022998,2]
[313207361,1706949040314,-500.0,0.00022998,2]
[313207363,1706949040325,-500.0,0.00022998,2]
[313207365,1706949040334,-1334.74,0.00022998,2]
[313207367,1706949040344,-500.0,0.00022998,2]
[313207370,1706949040354,-500.0,0.00022998,2]
[313207372,1706949040363,-500.0,0.00022998,2]
[313207374,1706949040373,-500.0,0.00022998,2]
[313207376,1706949040382,-500.0,0.00022998,2]
[313207378,1706949040391,-500.0,0.00022998,2]
[313207380,1706949040401,-500.0,0.00022998,2]
[313207382,1706949040411,-500.0,0.00022998,2]
[313207384,1706949040421,-4610.66,0.00022998,2]
[313207386,1706949040431,-500.0,0.00022998,2]
[313207388,1706949040440,-500.0,0.00022998,2]
[313207390,1706949040451,-500.0,0.00022998,2]
[313207392,1706949040460,-324.03166566,0.00022998,2]
[313207395,1706949040476,-175.96833434,0.00022998,2]
[313207397,1706949040485,-477.71067827,0.00022998,2]
[313207399,1706949040497,-240.43932173,0.00022998,2]
[313207401,1706949040506,-500.0,0.00022998,2]
[313207403,1706949040516,-500.0,0.00022998,2]
[313207405,1706949040526,-500.0,0.00022998,2]
[313207407,1706949040536,-500.0,0.00022998,2]
[313207409,1706949040547,-500.0,0.00022998,2]
[313207411,1706949040556,-500.0,0.00022998,2]
[313207413,1706949040566,-211.12290467,0.00022998,2]
[313207415,1706949040577,-500.0,0.00022998,2]
[313207417,1706949040587,-455.51889837,0.00022998,2]
[313207421,1706949040611,-44.48110163,0.00022998,2]
[313207423,1706949040620,-591.84678949,0.00022998,2]
[313207425,1706949040629,-329.38077416,0.00022998,2]
[313207427,1706949040642,-170.61922584,0.00022998,2]
[313207429,1706949040651,-500.0,0.00022998,2]
[313207431,1706949040661,-500.0,0.00022998,2]
[313207433,1706949040673,-500.0,0.00022998,2]
[313207435,1706949040682,-3060.73760896,0.00022999,20]
[313207437,1706949040691,-3160.98074311,0.00022999,2]
[313207439,1706949040700,-1127.18280405,0.00022999,2]
[313207445,1706949040743,-256.18887846,0.00022999,2]
[313207446,1706949040753,-500.0,0.00022999,2]
[313207447,1706949040762,-24.36075668,0.00022999,2]
[313207448,1706949040773,-261.6596807,0.00022999,2]
[313207449,1706949040789,-213.97956262,0.00022999,2]
[313207450,1706949040798,-500.0,0.00022999,2]
[313207451,1706949040807,-500.0,0.00022999,2]
[313207452,1706949040816,-500.0,0.00022999,2]
[313207453,1706949040825,-516.68,0.00022999,2]
[313207454,1706949040834,-500.0,0.00022999,2]
[313207455,1706949040844,-500.0,0.00022999,2]
[313207457,1706949040853,-500.0,0.00022999,2]
[313207459,1706949040863,-150.0,0.00022999,2]
[313207462,1706949040875,-370.75534044,0.00022999,2]
[313207476,1706949041003,-129.24465956,0.00022999,2]
[313207478,1706949041013,-478.81805794,0.00022999,2]
[313207481,1706949041024,-21.18194206,0.00022999,2]
[313207483,1706949041034,-392.4770681,0.00022999,2]
[313207485,1706949041044,-500.0,0.00022999,2]
[313207487,1706949041054,-98.91298984,0.00022999,2]
[313207509,1706949041268,-53.62495004,0.00022999,2]
[313207511,1706949041278,-1037.42,0.00022999,2]
[313207513,1706949041287,-500.0,0.00022999,2]
[313207515,1706949041296,-500.0,0.00022999,2]
[313207517,1706949041305,-500.0,0.00022999,2]
[313207518,1706949041315,-500.0,0.00022999,2]
[313207520,1706949041324,-500.0,0.00022999,2]
[313207522,1706949041333,-247.08390854,0.00022999,2]
[313207524,1706949041343,-500.0,0.00022999,2]
[313207526,1706949041352,-500.0,0.00022999,2]
[313207528,1706949041361,-500.0,0.00022999,2]
[313207530,1706949041371,-500.0,0.00022999,2]
[313207532,1706949041380,-525.19092694,0.00022999,2]
[313207534,1706949041389,-500.0,0.00022999,2]
[313207536,1706949041400,-500.0,0.00022999,2]
[313207538,1706949041410,-500.0,0.00022999,2]
[313207540,1706949041419,-398.07692923,0.00022999,2]
[313207542,1706949041428,-582.31014411,0.00022999,2]
[313207544,1706949041436,-526.59086677,0.00022999,2]
[313207546,1706949041445,-220.56935443,0.00022999,2]
[313207548,1706949041455,-226.26158797,0.00022999,2]
[313207550,1706949041465,-583.44424205,0.00022999,2]
[313207552,1706949041474,-539.50264587,0.00022999,2]
[313207554,1706949041484,-500.0,0.00022999,2]
[313207556,1706949041493,-500.0,0.00022999,2]
[313207558,1706949041502,-574.46770357,0.00022999,2]
[313207560,1706949041512,-554.95492848,0.00022999,2]
[313207562,1706949041521,-528.7723768,0.00022999,2]
[313207564,1706949041530,-619.92739893,0.00022999,2]
[313207566,1706949041540,-500.0,0.00022999,2]
[313207568,1706949041549,-500.0,0.00022999,2]
[313207570,1706949041558,-500.0,0.00022999,2]
[313207572,1706949041567,-500.0,0.00022999,2]
[313207574,1706949041576,-500.0,0.00022999,2]
[313207576,1706949041585,-500.0,0.00022999,2]
[313207578,1706949041594,-500.0,0.00022999,2]
[313207580,1706949041604,-545.29561347,0.00022999,2]
[313207582,1706949041613,-454.52702495,0.00022999,2]
[313207584,1706949041622,-250.0,0.00022999,2]
[313207586,1706949041634,-554.88080528,0.00022999,2]
[313207588,1706949041643,-567.05815944,0.00022999,2]
[313207590,1706949041652,-500.0,0.00022999,2]
[313207592,1706949041661,-500.0,0.00022999,2]
[313207594,1706949041670,-622.2314039,0.00022999,2]
[313207596,1706949041680,-518.38980487,0.00022999,2]
[313207598,1706949041690,-500.0,0.00022999,2]
[313207600,1706949041699,-500.0,0.00022999,2]
[313207602,1706949041709,-245.34381583,0.00022999,2]
[313207604,1706949041717,-500.0,0.00022999,2]
[313207606,1706949041726,-500.0,0.00022999,2]
[313207608,1706949041736,-532.38722977,0.00022999,2]
[313207610,1706949041745,-527.72860082,0.00022999,2]
[313207612,1706949041755,-595.25499695,0.00022999,2]
[313207614,1706949041764,-500.01908275,0.00022999,2]
[313207616,1706949041774,-515.00948955,0.00022999,2]
[313207618,1706949041782,-530.44144963,0.00022999,2]
[313207620,1706949041793,-591.13496923,0.00022999,2]
[313207621,1706949041802,-363.64543732,0.00022999,2]
[313207623,1706949041810,-557.93500967,0.00022999,2]
[313207625,1706949041819,-483.43509994,0.00022999,2]
[313207627,1706949041828,-610.99225105,0.00022999,2]